{"text_format":"1","workbook":"xlsx","n_sheets":3,"sheets":["Baza","Unos","Arhiva"],"not_rendered":{"charts":0,"images":1,"macros":1,"external_links":0,"defined_names":0,"comments":0,"pivot_tables":0},"unopened":[],"bounds":{"document_bytes":16777216,"sheet_cells":100000,"rows_first":2000,"rows_last":500,"rows_between":2000,"halvings":0,"cell_chars":16384,"cell_head_chars":4096},"cells_cut":0,"cells_raw":0,"read":"whole","date_system":"1900"}

{"sheet":"Baza","index":0,"n_rows":31,"n_cols":8,"rows_kept":31,"cut":false,"hidden":false,"merged":[]}
["Red. broj","Osnovno sredstvo","Inv.broj","Objekat","Prostorija","Poz. mašine","Tip opreme","Fa.broj"]
[1,"Osnovno sredstvo 1","Inv.broj1","Obj.1","Prost.1","Pozicija1","tip1","Fa.broj.1"]
[{"$f":"SUM(A2+1)","v":2},"Osnovno sredstvo 2","Inv.broj2","Obj.2","Prost.2","Pozicija2","tip2","Fa.broj.2"]
[{"$f":"SUM(A3+1)","v":3},"Osnovno sredstvo 3","Inv.broj3","Obj.3","Prost.3","Pozicija3","tip3","Fa.broj.3"]
[4,"Osnovno sredstvo 4","Inv.broj4","Obj.4","Prost.4","Pozicija4","tip4","Fa.broj.4"]
[5,"Osnovno sredstvo 5","Inv.broj5","Obj.5","Prost.5","Pozicija5","tip5","Fa.broj.5"]
[6,"Osnovno sredstvo 6","Inv.broj6","Obj.6","Prost.6","Pozicija6","tip6","Fa.broj.6"]
[7,"Osnovno sredstvo 7","Inv.broj7","Obj.7","Prost.7","Pozicija7","tip7","Fa.broj.7"]
[8,"Osnovno sredstvo 8","Inv.broj8","Obj.8","Prost.8","Pozicija8","tip8","Fa.broj.8"]
[9,"Osnovno sredstvo 9","Inv.broj9","Obj.9","Prost.9","Pozicija9","tip9","Fa.broj.9"]
[10,"Osnovno sredstvo 10","Inv.broj10","Obj.10","Prost.10","Pozicija10","tip10","Fa.broj.10"]
[11,"Osnovno sredstvo 11","Inv.broj11","Obj.11","Prost.11","Pozicija11","tip11","Fa.broj.11"]
[12,"Osnovno sredstvo 12","Inv.broj12","Obj.12","Prost.12","Pozicija12","tip12","Fa.broj.12"]
[13,"Osnovno sredstvo 13","Inv.broj13","Obj.13","Prost.13","Pozicija13","tip13","Fa.broj.13"]
[14,"Osnovno sredstvo 14","Inv.broj14","Obj.14","Prost.14","Pozicija14","tip14","Fa.broj.14"]
[15,"Osnovno sredstvo 15","Inv.broj15","Obj.15","Prost.15","Pozicija15","tip15","Fa.broj.15"]
[16,"Osnovno sredstvo 16","Inv.broj16","Obj.16","Prost.16","Pozicija16","tip16","Fa.broj.16"]
[17,"Osnovno sredstvo 17","Inv.broj17","Obj.17","Prost.17","Pozicija17","tip17","Fa.broj.17"]
[18,"Osnovno sredstvo 18","Inv.broj18","Obj.18","Prost.18","Pozicija18","tip18","Fa.broj.18"]
[19,"Osnovno sredstvo 19","Inv.broj19","Obj.19","Prost.19","Pozicija19","tip19","Fa.broj.19"]
[20,"Osnovno sredstvo 20","Inv.broj20","Obj.20","Prost.20","Pozicija20","tip20","Fa.broj.20"]
[21,"Osnovno sredstvo 21","Inv.broj21","Obj.21","Prost.21","Pozicija21","tip21","Fa.broj.21"]
[22,"Osnovno sredstvo 22","Inv.broj22","Obj.22","Prost.22","Pozicija22","tip22","Fa.broj.22"]
[23,"Osnovno sredstvo 23","Inv.broj23","Obj.23","Prost.23","Pozicija23","tip23","Fa.broj.23"]
[24,"Osnovno sredstvo 24","Inv.broj24","Obj.24","Prost.24","Pozicija24","tip24","Fa.broj.24"]
[25,"Osnovno sredstvo 25","Inv.broj25","Obj.25","Prost.25","Pozicija25","tip25","Fa.broj.25"]
[26,"Osnovno sredstvo 26","Inv.broj26","Obj.26","Prost.26","Pozicija26","tip26","Fa.broj.26"]
[27,"Osnovno sredstvo 27","Inv.broj27","Obj.27","Prost.27","Pozicija27","tip27","Fa.broj.27"]
[28,"Osnovno sredstvo 28","Inv.broj28","Obj.28","Prost.28","Pozicija28","tip28","Fa.broj.28"]
[29,"Osnovno sredstvo 29","Inv.broj29","Obj.29","Prost.29","Pozicija29","tip29","Fa.broj.29"]
[30,"Osnovno sredstvo 30","Inv.broj30","Obj.30","Prost.30","Pozicija30","tip30","Fa.broj.30"]

{"sheet":"Unos","index":1,"n_rows":0,"n_cols":0,"rows_kept":0,"cut":false,"hidden":false,"merged":[]}

{"sheet":"Arhiva","index":2,"n_rows":2,"n_cols":13,"rows_kept":2,"cut":false,"hidden":false,"merged":[]}
["Red.bbroj","Osnovno sredstvo","Inv.broj","Objekat","Prostorija","Poz.mašine","Fa.broj","Tip opreme","Datum popravke","Opis popravke","Utrosen materijal","Popravku izvršio","Utroseno vreme"]
[8,"Osnovno sredstvo 8","Inv.broj8","Obj.8","Prost.8","Pozicija8","Fa.broj.8","tip8","20.02.2011.","Izvršeno","Patron osigurača - 1 kom","Jovanović Zoran",1]